Workbook

Sheet Rio @ 1604
A2: Rent Roll - HELU
A3: Rio @ 1604
A4: Jan 2026
A6: Unit Details
A7: Bldg-Unit | B7: SQFT | C7: Unit Status | D7: Resident | E7: Move-In | F7: Lease Start | G7: Lease End | H7: Market Rent | I7: Lease Rent
A8: Unit Type: B1 2X1
A9: 25-2501 | B9: 949 | C9: Occupied No Notice | D9: Hilbig, Cathryn | E9: 2009-04-28 | F9: 2025-05-01 | G9: 2026-07-31 | H9: 1200 | I9: 1113
A10: 25-2503 | B10: 949 | C10: Occupied No Notice | D10: Lemaire, Fantayshia | E10: 2025-12-12 | F10: 2025-12-12 | G10: 2027-03-11 | H10: 1250 | I10: 1117
A11: 26-2601 | B11: 949 | C11: Occupied No Notice | D11: Bravo, Miriam | E11: 2025-08-30 | F11: 2025-08-30 | G11: 2026-08-29 | H11: 1202 | I11: 1219
A12: 26-2603 | B12: 949 | C12: Occupied No Notice | D12: Villegas, Rodolfo | E12: 2025-11-03 | F12: 2025-10-29 | G12: 2027-01-28 | H12: 1173 | I12: 1099
A13: 29-2901 | B13: 949 | C13: Occupied No Notice | D13: Parsons, Rochelle | E13: 2025-12-19 | F13: 2025-12-19 | G13: 2027-03-18 | H13: 1250 | I13: 1173
A14: 29-2903 | B14: 949 | C14: Occupied No Notice | D14: Rosas, Javier | E14: 2025-05-17 | F14: 2025-05-17 | G14: 2026-08-16 | H14: 1118 | I14: 1099
A15: 30-3001 | B15: 949 | C15: Occupied No Notice | D15: Yayes, Clara | E15: 2025-08-30 | F15: 2025-08-30 | G15: 2026-08-29 | H15: 1162 | I15: 1162
A16: 30-3003 | B16: 949 | C16: Occupied No Notice | D16: Guillen, Dania | E16: 2025-11-28 | F16: 2025-11-28 | G16: 2027-02-28 | H16: 1250 | I16: 1199
A17: 33-3301 | B17: 949 | C17: Occupied No Notice | D17: Sui, Ngun | E17: 2025-12-08 | F17: 2025-12-08 | G17: 2027-03-07 | H17: 1250 | I17: 1117
A18: 33-3303 | B18: 949 | C18: Vacant Rented Ready | D18: -- Vacant -- | H18: 1196
A19: B1 2X1 Total: | B19: =SUM(B9:B18) -> 9490 | H19: =SUM(H9:H18) -> 12051 | I19: =SUM(I9:I18) -> 10298
A20: Unit Type: B2 2x2
A21: 27-2701 | B21: 1092 | C21: Notice Unrented | D21: Santos, Jordan | E21: 2023-01-27 | F21: 2025-02-01 | G21: 2026-01-31 | H21: 1213 | I21: 1250
A22: 27-2703 | B22: 1092 | C22: Occupied No Notice | D22: Palos, Brett | E22: 2025-05-30 | F22: 2025-05-30 | G22: 2026-03-29 | H22: 1219 | I22: 1253
A23: 28-2801 | B23: 1092 | C23: Vacant Rented Not Ready | D23: -- Vacant -- | H23: 1200
A24: 28-2803 | B24: 1092 | C24: Vacant Unrented Not Ready | D24: -- Vacant -- | H24: 1195
A25: 31-3101 | B25: 1092 | C25: Occupied No Notice | D25: Sibley, Loretta | E25: 2019-03-01 | F25: 2025-03-01 | G25: 2026-05-31 | H25: 1250 | I25: 1178
A26: 31-3103 | B26: 1092 | C26: Occupied No Notice | D26: Mora, Jose | E26: 2021-03-01 | F26: 2025-03-01 | G26: 2026-05-31 | H26: 1250 | I26: 1175
A27: 32-3201 | B27: 1092 | C27: Occupied No Notice | D27: Camacho, Pearl | E27: 2022-05-01 | F27: 2025-05-01 | G27: 2026-04-30 | H27: 1350 | I27: 1315
A28: 32-3203 | B28: 1092 | C28: Occupied No Notice | D28: Anderson, Mariah | E28: 2024-11-30 | F28: 2024-11-30 | G28: 2026-02-28 | H28: 1343 | I28: 1128
A29: B2 2x2 Total: | B29: =SUM(B21:B28) -> 8736 | H29: =SUM(H21:H28) -> 10020 | I29: =SUM(I21:I28) -> 7299
A30: Unit Type: B3 2x2
A31: 2-202 | B31: 1209 | C31: Occupied No Notice | D31: Ellis, Dustin | E31: 2024-03-11 | F31: 2025-04-29 | G31: 2026-04-28 | H31: 1385 | I31: 922
A32: 2-204 | B32: 1209 | C32: Occupied No Notice | D32: Antoine, Destiny | E32: 2025-10-22 | F32: 2025-10-22 | G32: 2026-10-31 | H32: 1485 | I32: 1199
A33: 4-402 | B33: 1209 | C33: Occupied No Notice | D33: Perez, Forrest | E33: 2025-05-08 | F33: 2025-05-08 | G33: 2026-08-07 | H33: 1269 | I33: 1249
A34: 4-404 | B34: 1209 | C34: Occupied No Notice | D34: Sessions, Monique | E34: 2025-11-28 | F34: 2025-11-28 | G34: 2027-02-27 | H34: 1154 | I34: 1185
A35: 6-602 | B35: 1209 | C35: Occupied No Notice | D35: Hernandez, Alissa | E35: 2024-11-01 | F35: 2025-11-01 | G35: 2026-10-31 | H35: 1243 | I35: 1143
A36: 6-604 | B36: 1209 | C36: Occupied No Notice | D36: Gear, Melody | E36: 2025-04-25 | F36: 2025-04-25 | G36: 2026-07-24 | H36: 1250 | I36: 1199
A37: 9-902 | B37: 1209 | C37: Occupied No Notice | D37: Mobley, Destiny | E37: 2025-01-31 | F37: 2025-01-31 | G37: 2026-01-30 | H37: 1350 | I37: 1315
A38: 9-904 | B38: 1209 | C38: Occupied No Notice | D38: Antley, Cassandra | E38: 2025-01-31 | F38: 2025-01-31 | G38: 2026-04-30 | H38: 1250 | I38: 1120
A39: 11-1102 | B39: 1209 | C39: Occupied No Notice | D39: Banda Cano, Juan Martin | E39: 2025-04-04 | F39: 2025-04-04 | G39: 2026-07-03 | H39: 1220 | I39: 1199
A40: 11-1104 | B40: 1209 | C40: Occupied No Notice | D40: Pscheidt, Ericka | E40: 2024-10-14 | F40: 2026-01-14 | H40: 1213 | I40: 1198
A41: 13-1302 | B41: 1209 | C41: Occupied No Notice | D41: Hart, Davey | E41: 2025-09-06 | F41: 2025-09-05 | G41: 2026-10-04 | H41: 1264 | I41: 1257
A42: 13-1304 | B42: 1209 | C42: Occupied No Notice | D42: Burton, Nancy | E42: 2020-05-08 | F42: 2025-07-02 | G42: 2026-07-01 | H42: 1350 | I42: 1269
A43: 14-1402 | B43: 1209 | C43: Occupied No Notice | D43: Gonzales, Trina | E43: 2025-11-21 | F43: 2025-11-21 | G43: 2027-02-20 | H43: 1311 | I43: 1127
A44: 14-1404 | B44: 1209 | C44: Occupied No Notice | D44: Cole, Alijah | E44: 2025-01-17 | F44: 2025-01-17 | G44: 2026-04-16 | H44: 1311 | I44: 1138
A45: 15-1502 | B45: 1209 | C45: Occupied No Notice | D45: Garcia, Nakiesha | E45: 2025-02-21 | F45: 2025-02-21 | G45: 2026-05-20 | H45: 1136 | I45: 1115
A46: 15-1504 | B46: 1209 | C46: Occupied No Notice | D46: Friesenhahn, Leslie | E46: 2025-11-10 | F46: 2025-11-10 | G46: 2026-11-09 | H46: 1269 | I46: 1249
A47: 17-1702 | B47: 1209 | C47: Occupied No Notice | D47: Cristobal Munguia, Raul | E47: 2025-02-07 | F47: 2025-02-07 | G47: 2026-04-30 | H47: 1253 | I47: 1226
A48: 17-1704 | B48: 1209 | C48: Occupied No Notice | D48: Jaimes, Eliodora | E48: 2022-04-05 | F48: 2025-05-27 | G48: 2026-05-26 | H48: 1350 | I48: 1325
A49: 21-2102 | B49: 1209 | C49: Occupied No Notice | D49: Diaz, Lilliana | E49: 2024-04-12 | F49: 2025-05-01 | G49: 2026-04-30 | H49: 1250 | I49: 995
A50: 21-2104 | B50: 1209 | C50: Occupied No Notice | D50: Reyes, Marcus | E50: 2025-08-02 | F50: 2025-08-02 | G50: 2026-11-01 | H50: 1268 | I50: 1248
A51: 23-2302 | B51: 1209 | C51: Occupied No Notice | D51: Martinez, Ashley | E51: 2024-03-23 | F51: 2025-03-01 | G51: 2026-05-31 | H51: 1250 | I51: 1230
A52: 23-2304 | B52: 1209 | C52: Occupied No Notice | D52: Johnson, Anna | E52: 2023-03-31 | F52: 2026-01-01 | G52: 2026-12-31 | H52: 1400 | I52: 1381
A53: 24-2402 | B53: 1209 | C53: Occupied No Notice | D53: Hagler, DeJaun | E53: 2025-03-05 | F53: 2025-03-05 | G53: 2026-06-04 | H53: 1231 | I53: 1210
A54: 24-2404 | B54: 1209 | C54: Occupied No Notice | D54: Powell, Michael | E54: 2017-12-01 | F54: 2025-01-01 | G54: 2026-03-31 | H54: 1300 | I54: 1270
A55: B3 2x2 Total: | B55: =SUM(B31:B54) -> 29016 | H55: =SUM(H31:H54) -> 30762 | I55: =SUM(I31:I54) -> 28769
A56: Unit Type: B4 2x2
A57: 1-102 | B57: 1242 | C57: Occupied No Notice | D57: Turner, Tametra | E57: 2025-06-14 | F57: 2025-06-14 | G57: 2026-09-13 | H57: 1306 | I57: 1225
A58: 1-104 | B58: 1242 | C58: Occupied No Notice | D58: Kyle, Lester | E58: 2025-02-01 | F58: 2025-02-01 | G58: 2026-04-30 | H58: 1300 | I58: 1131
A59: 3-302 | B59: 1242 | C59: Occupied No Notice | D59: Rodriguez, Aliza | E59: 2025-04-11 | F59: 2025-04-11 | G59: 2026-07-10 | H59: 1288 | I59: 1093
A60: 3-304 | B60: 1242 | C60: Occupied No Notice | D60: Lara, Jose Guadalupe | E60: 2025-05-15 | F60: 2025-11-15 | H60: 1245 | I60: 1349
A61: 5-502 | B61: 1242 | C61: Occupied No Notice | D61: Flores, Raul | E61: 2024-02-23 | F61: 2025-03-15 | G61: 2026-06-14 | H61: 1300 | I61: 1150
A62: 5-504 | B62: 1242 | C62: Occupied No Notice | D62: Blanchard, Isaac | E62: 2022-01-22 | F62: 2025-01-01 | G62: 2026-03-31 | H62: 1400 | I62: 1392
A63: 7-702 | B63: 1242 | C63: Occupied No Notice | D63: Blair, Cameron | E63: 2026-01-17 | F63: 2026-01-17 | G63: 2027-04-16 | H63: 1250 | I63: 1200
A64: 7-704 | B64: 1242 | C64: Occupied No Notice | D64: Martinez Nuncio, Jennifer | E64: 2025-06-24 | F64: 2025-06-24 | G64: 2026-09-23 | H64: 1300 | I64: 1199
A65: 8-802 | B65: 1242 | C65: Occupied No Notice | D65: Martinez, Angela | E65: 2024-07-12 | F65: 2025-07-01 | G65: 2026-06-30 | H65: 1250 | I65: 1209
A66: 8-804 | B66: 1242 | C66: Occupied No Notice | D66: Williams, Tiffany | E66: 2022-12-30 | F66: 2025-07-10 | G66: 2026-07-09 | H66: 1266 | I66: 1475
A67: 10-1002 | B67: 1242 | C67: Notice Rented | D67: Counts Ramirez, Dillon | E67: 2025-03-29 | F67: 2025-03-29 | G67: 2026-06-28 | H67: 1113 | I67: 1125
A68: 10-1004 | B68: 1242 | C68: Occupied No Notice | D68: gonzales, treasure | E68: 2025-12-29 | F68: 2025-12-29 | G68: 2027-03-28 | H68: 1295 | I68: 1295
A69: 12-1202 | B69: 1242 | C69: Notice Rented | D69: Garcia, Megan | E69: 2025-07-02 | F69: 2025-07-02 | G69: 2026-10-01 | H69: 1300 | I69: 1299
A70: 12-1204 | B70: 1242 | C70: Occupied No Notice | D70: Joshua, Laniece | E70: 2025-05-02 | F70: 2025-05-02 | G70: 2026-08-01 | H70: 1300 | I70: 1275
A71: 16-1602 | B71: 1242 | C71: Occupied No Notice | D71: Conkel, Michelle | E71: 2023-07-27 | F71: 2025-08-11 | G71: 2026-02-10 | H71: 1625 | I71: 1625
A72: 16-1604 | B72: 1242 | C72: Occupied No Notice | D72: McFarland, Mandy | E72: 2025-11-28 | F72: 2025-11-28 | G72: 2027-02-27 | H72: 1347 | I72: 1209
A73: 18-1802 | B73: 1242 | C73: Occupied No Notice | D73: Dejesus, Madeline | E73: 2025-10-15 | F73: 2025-10-15 | G73: 2026-10-14 | H73: 1275 | I73: 1275
A74: 18-1804 | B74: 1242 | C74: Occupied No Notice | D74: Hildebrandt, Layne | E74: 2024-01-26 | F74: 2025-03-01 | G74: 2026-02-28 | H74: 1275 | I74: 1230
A75: 19-1902 | B75: 1242 | C75: Occupied No Notice | D75: Smith, Gage | E75: 2024-12-10 | F75: 2024-12-10 | G75: 2026-03-09 | H75: 1200 | I75: 1129
A76: 19-1904 | B76: 1242 | C76: Occupied No Notice | D76: Graham, Sarah | E76: 2025-07-12 | F76: 2025-07-12 | G76: 2026-10-11 | H76: 1320 | I76: 1299
A77: 20-2002 | B77: 1242 | C77: Occupied No Notice | D77: perez, auburn | E77: 2025-11-14 | F77: 2025-11-14 | G77: 2026-11-13 | H77: 1172 | I77: 1172
A78: 20-2004 | B78: 1242 | C78: Occupied No Notice | D78: Yajaira, Escarlet | E78: 2025-11-17 | F78: 2025-11-17 | G78: 2027-02-16 | H78: 1275 | I78: 1245
A79: 22-2202 | B79: 1242 | C79: Occupied No Notice | D79: Trappe, Clinton | E79: 2025-03-01 | F79: 2025-03-01 | G79: 2026-05-31 | H79: 1221 | I79: 1225
A80: 22-2204 | B80: 1242 | C80: Notice Unrented | D80: Madsen, Michelle | E80: 2024-11-18 | F80: 2024-11-18 | G80: 2026-02-17 | H80: 1245 | I80: 1128
A81: B4 2x2 Total: | B81: =SUM(B57:B80) -> 29808 | H81: =SUM(H57:H80) -> 30868 | I81: =SUM(I57:I80) -> 29954
A82: Unit Type: B5 2x2
A83: 2-201 | B83: 1312 | C83: Occupied No Notice | D83: Kamai, Gwendolyn | E83: 2024-02-28 | F83: 2025-02-01 | G83: 2026-04-30 | H83: 1350 | I83: 1250
A84: 2-203 | B84: 1312 | C84: Occupied No Notice | D84: Wigham, Joe | E84: 2024-05-28 | F84: 2025-05-29 | G84: 2026-05-28 | H84: 1400 | I84: 1393
A85: 4-401 | B85: 1312 | C85: Occupied No Notice | D85: Gleason, Laura | E85: 2016-12-01 | F85: 2025-12-01 | G85: 2026-11-30 | H85: 1400 | I85: 1380
A86: 4-403 | B86: 1312 | C86: Notice Unrented | D86: Crutchfield, Natasha | E86: 2025-04-05 | F86: 2025-04-05 | G86: 2026-07-04 | H86: 1422 | I86: 1350
A87: 6-601 | B87: 1312 | C87: Occupied No Notice | D87: Velasquez, Sostenes | E87: 2025-09-25 | F87: 2025-09-25 | G87: 2026-10-31 | H87: 1254 | I87: 1238
A88: 6-603 | B88: 1312 | C88: Occupied No Notice | D88: Maxwell, Bianca | E88: 2025-03-29 | F88: 2025-03-29 | G88: 2026-06-28 | H88: 1296 | I88: 1273
A89: 9-901 | B89: 1312 | C89: Occupied No Notice | D89: Ramirez, Christian | E89: 2024-01-25 | F89: 2025-02-01 | G89: 2026-01-31 | H89: 1350 | I89: 1250
A90: 9-903 | B90: 1312 | C90: Occupied No Notice | D90: Kinney, Sheila | E90: 2022-10-15 | F90: 2025-10-01 | G90: 2026-09-30 | H90: 1400 | I90: 1365
A91: 11-1101 | B91: 1312 | C91: Occupied No Notice | D91: Zeliff, Robert | E91: 2025-02-01 | F91: 2025-02-01 | G91: 2026-04-30 | H91: 1300 | I91: 1254
A92: 11-1103 | B92: 1312 | C92: Occupied No Notice | D92: Mcclain, Creeshann | E92: 2025-05-07 | F92: 2025-05-07 | G92: 2026-08-06 | H92: 1322 | I92: 1250
A93: 13-1301 | B93: 1312 | C93: Occupied No Notice | D93: Daniels, David | E93: 2024-02-29 | F93: 2025-03-01 | G93: 2026-02-28 | H93: 1300 | I93: 1170
A94: 13-1303 | B94: 1312 | C94: Occupied No Notice | D94: Manriquez, Daisy | E94: 2024-04-23 | F94: 2025-07-01 | G94: 2026-06-30 | H94: 1350 | I94: 1323
A95: 14-1401 | B95: 1312 | C95: Occupied No Notice | D95: Van Horne, Rishownyah | E95: 2025-04-26 | F95: 2025-04-26 | G95: 2026-07-25 | H95: 1322 | I95: 1199
A96: 14-1403 | B96: 1312 | C96: Occupied No Notice | D96: Rosas, Isabelle | E96: 2025-03-22 | F96: 2025-03-22 | G96: 2026-06-21 | H96: 1287 | I96: 1264
A97: 15-1501 | B97: 1312 | C97: Occupied No Notice | D97: Williams, Caitlin | E97: 2025-09-12 | F97: 2025-09-12 | G97: 2026-10-11 | H97: 1261 | I97: 1246
A98: 15-1503 | B98: 1312 | C98: Occupied No Notice | D98: Puente, Guillermina | E98: 2025-02-08 | F98: 2025-02-08 | G98: 2026-05-07 | H98: 1358 | I98: 1062
A99: 17-1701 | B99: 1312 | C99: Occupied No Notice | D99: Gallegos, Ariel | E99: 2024-02-24 | F99: 2025-04-01 | G99: 2026-03-31 | H99: 1375 | I99: 1375
A100: 17-1703 | B100: 1312 | C100: Occupied No Notice | D100: Castillo, Abigail | E100: 2024-12-14 | F100: 2024-12-14 | G100: 2026-01-31 | H100: 1350 | I100: 1320
A101: 21-2101 | B101: 1312 | C101: Occupied No Notice | D101: Duran, Anthony | E101: 2025-11-07 | F101: 2025-11-10 | G101: 2027-02-09 | H101: 1222 | I101: 1258
A102: 21-2103 | B102: 1312 | C102: Occupied No Notice | D102: Brown, Taikeshia | E102: 2019-04-12 | F102: 2025-05-01 | G102: 2026-07-31 | H102: 1445 | I102: 1361
A103: 23-2301 | B103: 1312 | C103: Occupied No Notice | D103: Yut, Julio | E103: 2024-01-16 | F103: 2025-03-19 | G103: 2026-06-18 | H103: 1375 | I103: 1270
A104: 23-2303 | B104: 1312 | C104: Occupied No Notice | D104: James, Sara | E104: 2025-11-28 | F104: 2025-11-28 | G104: 2026-11-27 | H104: 1325 | I104: 1275
A105: 24-2401 | B105: 1312 | C105: Occupied No Notice | D105: Dorante, Jayber | E105: 2023-12-30 | F105: 2025-03-01 | G105: 2026-02-28 | H105: 1350 | I105: 1220
A106: 24-2403 | B106: 1312 | C106: Occupied No Notice | D106: James, Alicia | E106: 2025-10-27 | F106: 2025-10-27 | G106: 2027-01-26 | H106: 1296 | I106: 1275
A107: B5 2x2 Total: | B107: =SUM(B83:B106) -> 31488 | H107: =SUM(H83:H106) -> 32110 | I107: =SUM(I83:I106) -> 30621
A108: Unit Type: B6 2x2
A109: 1-101 | B109: 1314 | C109: Occupied No Notice | D109: Daniels, Scott | E109: 2021-05-31 | F109: 2024-06-01 | H109: 1450 | I109: 1420
A110: 1-103 | B110: 1314 | C110: Occupied No Notice | D110: Randle, Robin | E110: 2025-03-12 | F110: 2025-03-12 | G110: 2026-03-11 | H110: 1422 | I110: 1322
A111: 3-301 | B111: 1314 | C111: Occupied No Notice | D111: Madison, Trey | E111: 2021-08-27 | F111: 2025-05-06 | G111: 2026-05-05 | H111: 1419 | I111: 1473
A112: 3-303 | B112: 1314 | C112: Occupied No Notice | D112: Aguirre, Cassandra | E112: 2024-10-10 | F112: 2026-01-10 | G112: 2027-04-09 | H112: 1271 | I112: 1229
A113: 5-501 | B113: 1314 | C113: Occupied No Notice | D113: Harper, Eathan | E113: 2024-01-12 | F113: 2025-06-30 | G113: 2026-06-29 | H113: 1450 | I113: 1419
A114: 5-503 | B114: 1314 | C114: Occupied No Notice | D114: Gill, Jamie | E114: 2025-05-02 | F114: 2025-05-02 | G114: 2026-08-01 | H114: 1422 | I114: 1324
A115: 7-701 | B115: 1314 | C115: Occupied No Notice | D115: Euresti, Estela | E115: 2023-02-27 | F115: 2025-03-01 | G115: 2026-02-28 | H115: 1450 | I115: 1381
A116: 7-703 | B116: 1314 | C116: Occupied No Notice | D116: Martinez, David | E116: 2025-08-30 | F116: 2025-08-30 | G116: 2026-10-29 | H116: 1313 | I116: 1258
A117: 8-801 | B117: 1314 | C117: Occupied No Notice | D117: Martinez, Michelle | E117: 2025-05-21 | F117: 2025-05-21 | G117: 2026-08-20 | H117: 1371 | I117: 1354
A118: 8-803 | B118: 1314 | C118: Occupied No Notice | D118: Rodriguez, Sandra | E118: 2023-10-13 | F118: 2025-10-12 | H118: 1450 | I118: 1399
A119: 10-1001 | B119: 1314 | C119: Occupied No Notice | D119: Bruce, Betty | E119: 2025-11-07 | F119: 2025-11-07 | G119: 2027-02-06 | H119: 1401 | I119: 1209
A120: 10-1003 | B120: 1314 | C120: Occupied No Notice | D120: TOVAR, JULIO | E120: 2025-01-09 | F120: 2025-01-09 | G120: 2026-04-08 | H120: 1449 | I120: 1220
A121: 12-1201 | B121: 1314 | C121: Occupied No Notice | D121: Zapata, Selina | E121: 2025-06-13 | F121: 2025-06-13 | G121: 2026-06-13 | H121: 1420 | I121: 1544
A122: 12-1203 | B122: 1314 | C122: Occupied No Notice | D122: Schuler, Desiree | E122: 2023-06-30 | F122: 2025-07-01 | G122: 2026-09-30 | H122: 1500 | I122: 1442
A123: 16-1601 | B123: 1314 | C123: Occupied No Notice | D123: Williams, Karissa | E123: 2022-05-24 | F123: 2025-05-01 | G123: 2026-04-30 | H123: 1500 | I123: 1473
A124: 16-1603 | B124: 1314 | C124: Occupied No Notice | D124: Gilmour, Justin | E124: 2025-12-31 | F124: 2025-12-31 | G124: 2026-12-30 | H124: 1365 | I124: 1209
A125: 18-1801 | B125: 1314 | C125: Occupied No Notice | D125: Morgan, Hayden | E125: 2025-08-22 | F125: 2025-08-29 | G125: 2026-10-21 | H125: 1292 | I125: 1278
A126: 18-1803 | B126: 1314 | C126: Notice Unrented | D126: Kirk, Courtney | E126: 2024-11-08 | F126: 2026-01-08 | G126: 2026-01-31 | H126: 1266 | I126: 1243
A127: 19-1901 | B127: 1314 | C127: Occupied No Notice | D127: Lovelady, Morgan | E127: 2025-04-19 | F127: 2025-04-19 | G127: 2026-07-18 | H127: 1398 | I127: 1350
A128: 19-1903 | B128: 1314 | C128: Occupied No Notice | D128: Espinoza, Daniel | E128: 2025-02-01 | F128: 2025-02-01 | G128: 2026-04-30 | H128: 1836 | I128: 1251
A129: 20-2001 | B129: 1314 | C129: Occupied No Notice | D129: Rivera-Alvarado, Selena | E129: 2025-11-18 | F129: 2025-11-18 | G129: 2027-02-17 | H129: 1311 | I129: 1003
A130: 20-2003 | B130: 1314 | C130: Occupied No Notice | D130: Garibay, Araceli | E130: 2025-02-01 | F130: 2025-02-01 | G130: 2026-03-31 | H130: 1358 | I130: 1150
A131: 22-2201 | B131: 1314 | C131: Occupied No Notice | D131: Bruns, TaQuea | E131: 2020-06-23 | F131: 2025-08-01 | G131: 2026-07-31 | H131: 1475 | I131: 1378
A132: 22-2203 | B132: 1314 | C132: Occupied No Notice | D132: Harris, Shari | E132: 2023-01-27 | F132: 2026-01-01 | G132: 2027-03-31 | H132: 1475 | I132: 1445
A133: B6 2x2 Total: | B133: =SUM(B109:B132) -> 31536 | H133: =SUM(H109:H132) -> 34064 | I133: =SUM(I109:I132) -> 31774
A134: Unit Type: B7 Townhome + Flex Space
A135: 25-2502 | B135: 1324 | C135: Occupied No Notice | D135: Lewis, Maurice | E135: 2025-01-01 | F135: 2025-01-02 | G135: 2026-03-01 | H135: 1450 | I135: 1350
A136: 25-2504 | B136: 1324 | C136: Occupied No Notice | D136: Chaney, Shanna | E136: 2025-06-03 | F136: 2025-06-03 | G136: 2026-09-02 | H136: 1349 | I136: 1350
A137: 26-2602 | B137: 1324 | C137: Notice Unrented | D137: Lewis, Sadonna | E137: 2024-11-01 | F137: 2024-11-01 | G137: 2026-01-31 | H137: 1425 | I137: 1455
A138: 26-2604 | B138: 1324 | C138: Occupied No Notice | D138: Lopez, Alvino | E138: 2025-12-01 | F138: 2025-12-01 | G138: 2026-11-30 | H138: 1450 | I138: 1349
A139: 27-2702 | B139: 1324 | C139: Occupied No Notice | D139: Martinez, Cynthia | E139: 2025-11-28 | F139: 2025-11-28 | G139: 2027-02-27 | H139: 1450 | I139: 1300
A140: 27-2704 | B140: 1324 | C140: Occupied No Notice | D140: Garcia, John | E140: 2025-04-16 | F140: 2025-04-16 | G140: 2026-07-08 | H140: 1369 | I140: 1345
A141: 28-2802 | B141: 1324 | C141: Vacant Rented Ready | D141: -- Vacant -- | H141: 1450
A142: 28-2804 | B142: 1324 | C142: Occupied No Notice | D142: Smith, Charles | E142: 2024-11-09 | F142: 2024-11-09 | G142: 2026-02-08 | H142: 1495 | I142: 1432
A143: 29-2902 | B143: 1324 | C143: Occupied No Notice | D143: Hayward Darkentell, Terri | E143: 2025-07-26 | F143: 2025-07-26 | G143: 2026-10-25 | H143: 1473 | I143: 1445
A144: 29-2904 | B144: 1324 | C144: Occupied No Notice | D144: Moreno, Alyssa | E144: 2025-11-14 | F144: 2025-11-14 | G144: 2027-02-13 | H144: 1373 | I144: 1273
A145: 30-3002 | B145: 1324 | C145: Occupied No Notice | D145: Mabry, MosesJaMonte | E145: 2025-12-05 | F145: 2025-12-05 | G145: 2027-03-04 | H145: 1450 | I145: 1300
A146: 30-3004 | B146: 1324 | C146: Occupied No Notice | D146: Boykins, Danielle | E146: 2026-01-17 | F146: 2026-01-17 | G146: 2027-04-16 | H146: 1349 | I146: 1299
A147: 31-3102 | B147: 1324 | C147: Occupied No Notice | D147: Schaefer, Megan | E147: 2024-09-14 | F147: 2025-09-01 | G147: 2026-08-31 | H147: 1500 | I147: 1380
A148: 31-3104 | B148: 1324 | C148: Occupied No Notice | D148: Mendez, Juan | E148: 2025-01-03 | F148: 2026-01-03 | H148: 1670 | I148: 1670
A149: 32-3202 | B149: 1324 | C149: Occupied No Notice | D149: Lopez, Isaac | E149: 2023-02-10 | F149: 2025-02-01 | G149: 2026-04-30 | H149: 1423 | I149: 1370
A150: 32-3204 | B150: 1324 | C150: Notice Unrented | D150: Houston, Shatoni | E150: 2025-03-15 | F150: 2025-03-15 | G150: 2026-06-14 | H150: 1425 | I150: 1431
A151: 33-3302 | B151: 1324 | C151: Occupied No Notice | D151: Cano, Genaro | E151: 2025-05-08 | F151: 2025-05-08 | G151: 2026-08-07 | H151: 1394 | I151: 1341
A152: 33-3304 | B152: 1324 | C152: Occupied No Notice | D152: Moss, Stephanie | E152: 2025-12-27 | F152: 2025-12-27 | G152: 2027-03-26 | H152: 1400 | I152: 1299
A153: B7 Townhome + Flex Space Total: | B153: =SUM(B135:B152) -> 23832 | H153: =SUM(H135:H152) -> 25895 | I153: =SUM(I135:I152) -> 23389
A154: Rio @ 1604 Total: | B154: =SUM(B9:B18)+SUM(B21:B28)+SUM(B31:B54)+SUM(B57:B80)+SUM(B83:B106)+SUM(B109:B132)+SUM(B135:B152) -> 163906 | H154: =SUM(H9:H18)+SUM(H21:H28)+SUM(H31:H54)+SUM(H57:H80)+SUM(H83:H106)+SUM(H109:H132)+SUM(H135:H152) -> 175770 | I154: =SUM(I9:I18)+SUM(I21:I28)+SUM(I31:I54)+SUM(I57:I80)+SUM(I83:I106)+SUM(I109:I132)+SUM(I135:I152) -> 162104
A156: Future Resident Details
A157: Bldg-Unit | B157: SQFT | C157: Unit Status | D157: Resident | E157: Move-In | F157: Lease Start | G157: Lease End | H157: Market Rent | I157: Actual Charges | J157: Scheduled Charges | K157: Balance | L157: Deposit Held
A158: Unit Type: B1 2X1
A159: 33-3303 | B159: 949 | C159: Vacant Rented Ready | D159: Rother, Juan angel | E159: 2026-01-17 | F159: 2026-01-17 | G159: 2027-01-16 | H159: 1196 | I159: 200 | J159: 180 | K159: 200 | L159: 0
A160: B1 2X1 Total: | B160: =SUM(B159:B159) -> 949 | H160: =SUM(H159:H159) -> 1196 | I160: =SUM(I159:I159) -> 200 | J160: =SUM(J159:J159) -> 180 | K160: =SUM(K159:K159) -> 200 | L160: =SUM(L159:L159) -> 0
A161: Unit Type: B2 2x2
A162: 28-2801 | B162: 1092 | C162: Vacant Rented Not Ready | D162: Mendoza, Adrian | E162: 2026-01-10 | F162: 2026-01-10 | G162: 2027-04-09 | H162: 1453 | I162: 150 | J162: 280 | K162: 150 | L162: 0
A163: B2 2x2 Total: | B163: =SUM(B162:B162) -> 1092 | H163: =SUM(H162:H162) -> 1453 | I163: =SUM(I162:I162) -> 150 | J163: =SUM(J162:J162) -> 280 | K163: =SUM(K162:K162) -> 150 | L163: =SUM(L162:L162) -> 0
A164: Unit Type: B4 2x2
A165: 10-1002 | B165: 1242 | C165: Notice Rented | D165: Ceaser, Cesare | E165: 2026-01-28 | F165: 2026-01-28 | G165: 2027-04-27 | H165: 1113 | I165: 150 | J165: 1287 | K165: 150 | L165: 0
A166: 12-1202 | B166: 1242 | C166: Notice Rented | D166: Cardenas, Alexis | E166: 2026-03-16 | F166: 2026-03-16 | G166: 2027-06-15 | H166: 1219 | I166: 200 | J166: 1379 | K166: 200 | L166: 0
A167: B4 2x2 Total: | B167: =SUM(B165:B166) -> 2484 | H167: =SUM(H165:H166) -> 2332 | I167: =SUM(I165:I166) -> 350 | J167: =SUM(J165:J166) -> 2666 | K167: =SUM(K165:K166) -> 350 | L167: =SUM(L165:L166) -> 0
A168: Unit Type: B7 Townhome + Flex Space
A169: 28-2802 | B169: 1324 | C169: Vacant Rented Ready | D169: Walker, Tonya | E169: 2026-01-10 | F169: 2026-01-10 | G169: 2027-01-09 | H169: 1576 | I169: 0 | J169: 260 | K169: 150 | L169: 0
A170: 30-3002 | B170: 1324 | C170: Occupied No Notice | D170: Garza, Consuelo | E170: 2025-11-28 | F170: 2025-11-28 | G170: 2027-02-27 | H170: 1450 | I170: 0 | J170: 1460 | K170: 0 | L170: 0
A171: B7 Townhome + Flex Space Total: | B171: =SUM(B169:B170) -> 2648 | H171: =SUM(H169:H170) -> 3026 | I171: =SUM(I169:I170) -> 0 | J171: =SUM(J169:J170) -> 1720 | K171: =SUM(K169:K170) -> 150 | L171: =SUM(L169:L170) -> 0
A172: Rio @ 1604 Total: | B172: =SUM(B159:B159)+SUM(B162:B162)+SUM(B165:B166)+SUM(B169:B170) -> 7173 | H172: =SUM(H159:H159)+SUM(H162:H162)+SUM(H165:H166)+SUM(H169:H170) -> 8007 | I172: =SUM(I159:I159)+SUM(I162:I162)+SUM(I165:I166)+SUM(I169:I170) -> 700 | J172: =SUM(J159:J159)+SUM(J162:J162)+SUM(J165:J166)+SUM(J169:J170) -> 4846 | K172: =SUM(K159:K159)+SUM(K162:K162)+SUM(K165:K166)+SUM(K169:K170) -> 850 | L172: =SUM(L159:L159)+SUM(L162:L162)+SUM(L165:L166)+SUM(L169:L170) -> 0
